bitfinex/quotes_SOLUSD_20250622
["timestamp","ask_amount","ask_price","bid_price","bid_amount"]
[1750622726612,27.42436368,129.04,129.0,21.649961]
[1750622726812,28.16436368,129.03,128.99,21.649961]
[1750622727120,27.42436368,129.02,128.97,22.369961]
[1750622727288,5.77440268,129.01,128.97,22.369961]
[1750622727488,5.77440268,129.0,128.97,22.369961]
[1750622727720,5.77440268,129.01,128.97,22.369961]
[1750622727924,5.77440268,129.0,128.97,22.369961]
[1750622728111,5.77440268,129.01,128.97,22.369961]
[1750622728309,5.77440268,129.0,128.97,22.369961]
[1750622728629,5.77440268,129.01,128.97,22.369961]
[1750622728815,5.77440268,129.0,128.97,22.369961]
[1750622728994,5.77440268,129.01,128.97,22.369961]
[1750622729311,5.77440268,129.01,128.98,21.649961]
[1750622729487,5.77440268,129.0,128.98,18.64964886]
[1750622729687,5.77440268,129.01,128.98,18.64964886]
[1750622729900,5.77440268,129.0,128.98,41.01960986]
[1750622730111,5.77440268,129.01,128.99,22.369961]
[1750622730309,5.77440268,129.02,128.99,22.369961]
[1750622730613,5.77440268,129.01,128.99,19.36964886]
[1750622730917,5.77440268,129.02,128.99,18.64964886]
[1750622731126,5.77440268,129.01,128.98,18.64964886]
[1750622731294,21.649961,129.02,128.98,18.64964886]
[1750622731491,5.77141783,129.01,128.98,18.64964886]
[1750622731705,5.77141783,129.01,128.97,22.369961]
[1750622731706,21.649961,129.01,128.97,22.369961]
[1750622732003,21.649961,128.99,128.95,18.64964886]
[1750622732319,21.649961,128.99,128.93,21.649961]
[1750622732320,5.77162951,128.98,128.93,21.649961]
[1750622732625,21.649961,128.95,128.91,73.79997796]
[1750622732796,21.649961,128.94,128.91,52.15001696]
[1750622732994,21.649961,128.93,128.91,52.15001696]
[1750622733202,5.77162951,128.95,128.91,52.15001696]
[1750622733203,5.77162951,128.92,128.91,52.15001696]
[1750622733496,21.649961,128.93,128.91,52.15001696]
[1750622733710,27.42159051,128.93,128.91,52.15001696]
[1750622734020,21.649961,128.93,128.91,52.15001696]
[1750622734197,27.42159051,128.93,128.91,52.15001696]
[1750622734409,21.649961,128.93,128.91,52.15001696]
[1750622734624,27.42159051,128.93,128.91,52.15001696]
[1750622734846,21.649961,128.93,128.91,52.15001696]
[1750622734994,21.649961,128.92,128.91,52.15001696]
[1750622735331,27.42159051,128.92,128.91,52.15001696]
[1750622735508,21.649961,128.92,128.91,52.15001696]
[1750622735706,27.42159051,128.92,128.91,52.15001696]
[1750622735901,21.649961,128.92,128.91,52.15001696]
[1750622736112,27.42159051,128.92,128.91,52.15001696]
[1750622736306,21.649961,128.92,128.91,52.15001696]
[1750622736627,28.16159051,128.92,128.91,52.15001696]
[1750622736796,5.77162951,128.92,128.91,52.15001696]
[1750622737000,27.42159051,128.92,128.91,52.15001696]
[1750622737293,28.16159051,128.92,128.91,52.15001696]
[1750622737616,28.16159051,128.92,128.86,18.64964886]
[1750622737809,21.649961,128.9,128.86,18.64964886]
[1750622738007,21.649961,128.9,128.86,41.01960986]
[1750622738221,21.649961,128.9,128.86,19.36964886]
[1750622738593,21.649961,128.9,128.86,41.01960986]
[1750622739316,21.649961,128.9,128.86,19.36964886]
[1750622739818,21.649961,128.9,128.86,18.64964886]
[1750622740023,21.649961,128.89,128.86,18.64964886]
[1750622740228,21.649961,128.87,128.83,0.72]
[1750622740423,0.74,128.9,128.83,0.72]
[1750622740625,21.649961,128.87,128.83,22.369961]
[1750622741215,8.616,128.9,128.83,22.369961]
[1750622741533,21.649961,128.87,128.83,0.72]
[1750622741830,21.649961,128.86,128.8,9.6832]
[1750622742009,21.649961,128.84,128.81,18.64964886]
[1750622743149,21.649961,128.82,128.79,70.84825657]
[1750622743314,21.649961,128.82,128.79,52.19860771]
[1750622743515,21.649961,128.83,128.79,74.56856871]
[1750622744605,21.649961,128.83,128.79,52.91860771]
[1750622746423,21.649961,128.81,128.79,52.19860771]
[1750622746633,21.649961,128.8,128.79,52.19860771]
[1750622747219,0.71,128.83,128.79,52.19860771]
[1750622747430,148.1,128.85,128.8,18.64964886]
[1750622747730,21.649961,128.86,128.82,40.98960986]
[1750622748424,169.749961,128.88,128.84,18.64964886]
[1750622748617,169.749961,128.88,128.84,40.29960986]
[1750622749022,21.649961,128.87,128.84,18.64964886]
[1750622749502,148.1,128.88,128.85,21.649961]
[1750622750229,0.71,128.87,128.82,0.69]
[1750622750405,0.71,128.87,128.83,21.649961]
[1750622750726,22.359961,128.87,128.83,21.649961]
[1750622751240,0.71,128.87,128.83,21.649961]
[1750622752128,0.71,128.87,128.84,21.649961]
[1750622752521,148.1,128.88,128.84,21.649961]
[1750622753024,148.1,128.88,128.82,0.69]
[1750622753231,148.1,128.88,128.85,21.649961]
[1750622756836,148.1,128.88,128.87,21.649961]
[1750622757017,7.6791,128.94,128.88,19.33964886]
[1750622757218,7.42,128.95,128.93,21.649961]
[1750622757625,7.42,128.95,128.94,21.649961]
[1750622757828,5.69810488,128.98,128.94,21.649961]
[1750622758032,0.71,128.98,128.95,21.649961]
[1750622759127,22.359961,128.98,128.93,21.649961]
[1750622759326,0.71,128.97,128.93,21.649961]
[1750622760128,0.71,128.97,128.94,21.649961]
[1750622760444,26.0,128.94,128.88,1.5769]
[1750622760621,55.069961,128.94,128.89,21.649961]
[1750622760809,55.069961,128.94,128.9,21.649961]
[1750622761013,0.71,128.9,128.82,1.5699]
[1750622761214,0.71,128.88,128.83,21.649961]
[1750622761449,21.649961,128.86,128.79,53.76850771]
[1750622761646,21.649961,128.85,128.79,52.19860771]
[1750622761816,21.649961,128.85,128.81,21.649961]
[1750622762012,47.649961,128.84,128.8,21.649961]
[1750622762235,47.649961,128.84,128.79,73.84856871]
[1750622762435,21.649961,128.83,128.79,73.84856871]
[1750622762637,21.649961,128.82,128.79,52.19860771]
[1750622763023,22.359961,128.82,128.77,21.649961]
[1750622763245,21.649961,128.81,128.77,21.649961]
[1750622763540,21.649961,128.81,128.75,8.11]
[1750622763541,21.649961,128.79,128.75,21.649961]
[1750622763937,21.649961,128.79,128.74,21.649961]
[1750622764120,21.649961,128.79,128.75,21.649961]
[1750622764452,21.649961,128.79,128.74,21.649961]
[1750622764623,21.649961,128.78,128.74,21.649961]
[1750622766028,21.649961,128.77,128.73,52.00726123]
[1750622766614,21.649961,128.77,128.73,73.65722223]
[1750622766816,22.359961,128.78,128.73,73.65722223]
[1750622767226,26.0,128.77,128.73,73.65722223]
[1750622768141,21.649961,128.77,128.73,73.65722223]
[1750622768333,48.359961,128.78,128.73,73.65722223]
[1750622768517,26.0,128.77,128.75,21.649961]
[1750622769040,26.0,128.75,128.74,21.649961]
[1750622771126,21.649961,128.78,128.74,21.649961]
[1750622771421,21.649961,128.79,128.75,21.649961]
[1750622771634,21.649961,128.78,128.74,21.649961]
[1750622771831,21.649961,128.78,128.73,52.00726123]
[1750622772122,21.649961,128.77,128.73,73.65722223]
[1750622772741,21.649961,128.78,128.74,21.649961]
[1750622772956,148.81,128.81,128.77,21.649961]
[1750622773238,0.71,128.8,128.76,21.649961]
[1750622773422,22.359961,128.8,128.76,21.649961]
[1750622773627,169.749961,128.81,128.76,21.649961]
[1750622773945,148.1,128.81,128.79,21.649961]
[1750622774658,148.1,128.81,128.8,21.649961]
[1750622774852,174.1,128.81,128.79,21.649961]
[1750622775032,26.0,128.81,128.79,21.649961]
[1750622775618,26.0,128.81,128.75,18.64964886]
[1750622775820,26.0,128.77,128.75,21.649961]
[1750622776234,26.0,128.77,128.76,21.649961]
[1750622776444,26.0,128.78,128.76,22.399961]
[1750622776643,26.0,128.78,128.77,21.649961]
[1750622777044,26.0,128.8,128.77,21.649961]
[1750622777248,26.0,128.79,128.78,21.649961]
[1750622778328,5.72193432,128.81,128.78,21.649961]
[1750622778527,31.72193432,128.81,128.79,21.649961]
[1750622778930,31.72193432,128.81,128.78,21.649961]
[1750622779946,26.0,128.79,128.75,21.649961]
[1750622780127,53.37189532,128.79,128.75,21.649961]
[1750622780329,5.72193432,128.78,128.77,21.649961]
[1750622780631,26.0,128.79,128.76,21.649961]
[1750622780837,47.649961,128.79,128.75,21.649961]
[1750622781643,26.0,128.79,128.75,21.649961]
[1750622781840,26.0,128.79,128.76,21.649961]
[1750622782050,5.72394145,128.8,128.77,21.649961]
[1750622782226,28.11390245,128.81,128.76,18.64964886]
[1750622782564,21.649961,128.79,128.74,18.64964886]
[1750622782757,28.11390245,128.79,128.75,21.649961]
[1750622782946,22.389961,128.79,128.75,21.649961]
[1750622783162,22.389961,128.79,128.73,52.00726123]
[1750622783163,21.649961,128.76,128.73,52.00726123]
[1750622784062,21.649961,128.8,128.75,22.399961]
[1750622784241,21.649961,128.8,128.74,18.64964886]
[1750622784242,5.72398973,128.8,128.76,21.649961]
[1750622784425,5.72398973,128.8,128.76,22.399961]
[1750622784631,5.72398973,128.8,128.77,40.29960986]
[1750622784839,5.72398973,128.81,128.78,21.649961]
[1750622785173,5.72398973,128.82,128.78,21.649961]
[1750622785327,13.16398973,128.83,128.8,21.649961]
[1750622785671,5.72398973,128.84,128.82,40.29960986]
[1750622785833,5.72398973,128.86,128.83,21.649961]
[1750622786030,30.44085092,128.88,128.83,21.649961]
[1750622786031,26.0,128.84,128.83,21.649961]
[1750622787450,5.72398973,128.88,128.84,18.64964886]
[1750622787631,5.72398973,128.9,128.87,21.649961]
[1750622787827,5.72398973,128.9,128.86,21.649961]
[1750622787828,27.37395073,128.9,128.86,21.649961]
[1750622788047,27.37395073,128.9,128.86,18.64964886]
[1750622788048,26.0,128.89,128.86,18.64964886]
[1750622788352,21.649961,128.88,128.82,18.64964886]
[1750622788553,21.649961,128.88,128.84,21.649961]
[1750622788761,22.389961,128.87,128.82,40.29960986]
[1750622789060,28.11395073,128.87,128.82,40.29960986]
[1750622789243,22.389961,128.87,128.82,40.29960986]
[1750622789448,21.649961,128.87,128.83,21.649961]
[1750622789635,27.37395073,128.87,128.83,21.649961]
[1750622789837,21.649961,128.87,128.83,21.649961]
[1750622790057,27.37395073,128.89,128.84,21.649961]
[1750622790259,21.649961,128.88,128.84,21.649961]
[1750622791043,21.649961,128.88,128.83,21.649961]
[1750622791249,21.649961,128.88,128.84,21.649961]
[1750622792055,21.649961,128.88,128.83,21.649961]
[1750622792266,21.649961,128.87,128.83,21.649961]
[1750622792675,0.74,128.88,128.83,21.649961]
[1750622792960,22.389961,128.88,128.83,21.649961]
[1750622793341,21.649961,128.88,128.83,21.649961]
[1750622793565,21.649961,128.88,128.84,21.649961]
[1750622793881,26.0,128.87,128.84,21.649961]
[1750622794648,26.0,128.87,128.83,21.649961]
[1750622795065,47.649961,128.87,128.83,18.64964886]
[1750622795265,47.649961,128.87,128.83,40.29960986]
[1750622796377,26.0,128.87,128.83,40.29960986]
[1750622796874,26.0,128.87,128.85,18.64964886]
[1750622797091,7.13438992,128.94,128.88,0.75]
[1750622797242,5.7271588,128.97,128.94,18.64964886]
[1750622797439,21.649961,129.0,128.96,21.649961]
[1750622797642,22.389961,129.0,128.96,21.649961]
[1750622797845,29.529761,129.01,128.96,21.649961]
[1750622798054,29.529761,129.01,128.93,19.39964886]
[1750622798055,6.2892,129.01,128.97,21.649961]
[1750622798257,28.679161,129.01,128.96,21.649961]
[1750622798444,21.649961,129.0,128.96,21.649961]
[1750622798662,7.44,129.02,128.98,21.649961]
[1750622798854,21.649961,129.01,128.96,40.29960986]
[1750622799055,21.649961,129.0,128.92,6.3347]
[1750622799276,0.74,128.97,128.91,18.64964886]
[1750622799570,21.649961,128.97,128.92,40.29960986]
[1750622799877,21.649961,128.96,128.92,18.64964886]
[1750622800169,22.389961,128.96,128.92,18.64964886]
[1750622800372,21.649961,128.96,128.92,18.64964886]
[1750622800562,6.46209886,128.99,128.91,18.64964886]
[1750622800563,47.649961,128.95,128.91,18.64964886]
[1750622801761,22.389961,128.94,128.9,18.64964886]
[1750622801963,21.649961,128.94,128.9,18.64964886]
[1750622805962,21.649961,128.94,128.9,18.64964886]
[1750622806361,21.649961,128.91,128.88,18.64964886]
[1750622806670,21.649961,128.9,128.87,18.64964886]
[1750622806854,0.72,128.93,128.87,18.64964886]
[1750622807054,21.649961,128.91,128.87,18.64964886]
[1750622808173,21.649961,128.93,128.88,41.00960986]
[1750622808351,21.649961,128.93,128.89,0.71]
[1750622808553,21.649961,128.93,128.9,18.64964886]
[1750622808753,21.649961,128.94,128.9,18.64964886]
[1750622809360,21.649961,128.94,128.9,40.29960986]
[1750622810178,21.649961,128.94,128.9,18.64964886]
[1750622810179,26.0,128.93,128.9,18.64964886]
[1750622812158,26.0,128.93,128.9,40.29960986]
[1750622812458,26.0,128.93,128.9,41.00960986]
[1750622812667,47.649961,128.93,128.89,18.64964886]
[1750622812871,48.369961,128.93,128.89,18.64964886]
[1750622813089,47.649961,128.92,128.87,40.29960986]
[1750622813290,47.649961,128.92,128.87,18.64964886]
[1750622813291,21.649961,128.91,128.87,18.64964886]
[1750622813587,26.0,128.91,128.87,18.64964886]
[1750622813791,21.649961,128.9,128.87,18.64964886]
[1750622814389,47.649961,128.91,128.87,41.00960986]
[1750622815080,47.649961,128.91,128.87,19.35964886]
[1750622815268,21.649961,128.9,128.85,40.29960986]
[1750622815468,21.649961,128.88,128.85,18.64964886]
[1750622816500,21.649961,128.87,128.84,18.64964886]
[1750622817494,21.649961,128.88,128.84,41.00960986]
[1750622817695,21.649961,128.89,128.85,0.71]
[1750622818194,21.649961,128.88,128.84,18.64964886]
[1750622818397,21.649961,128.88,128.84,19.35964886]
[1750622818795,26.0,128.89,128.84,41.00960986]
[1750622818974,21.649961,128.88,128.85,0.71]
[1750622819992,26.0,128.89,128.86,18.64964886]
[1750622819993,47.649961,128.89,128.86,18.64964886]
[1750622820298,26.0,128.89,128.86,18.64964886]
[1750622820800,47.649961,128.89,128.86,18.64964886]
[1750622820972,26.0,128.89,128.86,18.64964886]
[1750622821181,26.0,128.89,128.86,22.359961]
[1750622821777,26.0,128.89,128.85,18.64964886]
[1750622821778,21.649961,128.88,128.83,24.001861]
[1750622822083,26.0,128.89,128.86,21.649961]
[1750622822281,26.0,128.89,128.86,22.359961]
[1750622822886,26.0,128.89,128.87,18.64964886]
[1750622823897,26.0,128.89,128.85,0.71]
[1750622824104,26.0,128.89,128.83,18.64964886]
[1750622824105,21.649961,128.87,128.83,18.64964886]
[1750622824489,21.649961,128.87,128.83,41.00960986]
[1750622825475,21.649961,128.85,128.82,18.64964886]
[1750622825680,21.649961,128.86,128.82,18.64964886]
[1750622825890,21.649961,128.86,128.82,41.00960986]
[1750622826391,26.0,128.86,128.83,21.649961]
[1750622826591,26.0,128.86,128.85,18.64964886]
[1750622828108,27.38904216,128.89,128.85,18.64964886]
[1750622828284,22.369961,128.86,128.8,8.0821]
[1750622828613,26.0,128.84,128.79,22.359961]
[1750622828810,47.649961,128.84,128.8,22.359961]
[1750622828984,47.649961,128.84,128.81,18.64964886]
[1750622829884,21.649961,128.83,128.78,41.00960986]
[1750622830386,22.369961,128.84,128.79,21.649961]
[1750622830581,22.369961,128.84,128.79,22.359961]
[1750622832507,21.649961,128.83,128.79,22.359961]
[1750622833908,21.649961,128.83,128.8,18.64964886]
[1750622834312,21.649961,128.83,128.8,0.73]
[1750622834313,26.0,128.83,128.8,0.73]
[1750622834487,26.0,128.83,128.81,40.29960986]
[1750622834688,26.0,128.83,128.8,40.29960986]
[1750622834891,26.0,128.83,128.8,41.02960986]
[1750622835491,26.0,128.83,128.8,18.64964886]
[1750622837095,26.0,128.83,128.81,22.379961]
[1750622837387,0.71,128.81,128.73,52.00726123]
[1750622837606,21.649961,128.74,128.73,52.00726123]
[1750622837815,21.649961,128.74,128.68,0.73]
[1750622837989,21.649961,128.74,128.65,7.9212]
[1750622837990,21.649961,128.74,128.69,22.379961]
[1750622838518,21.649961,128.72,128.65,7.9212]
[1750622838694,21.649961,128.71,128.66,21.649961]
[1750622838898,21.649961,128.72,128.67,22.379961]
[1750622839206,21.649961,128.71,128.68,18.64964886]
[1750622839991,21.649961,128.75,128.71,18.64964886]
[1750622840191,0.71,128.77,128.71,18.64964886]
[1750622840398,21.649961,128.75,128.71,40.29960986]
[1750622840597,21.649961,128.75,128.71,41.02960986]
[1750622840906,26.0,128.75,128.72,21.649961]
[1750622841227,26.0,128.75,128.72,22.379961]
[1750622841522,21.649961,128.76,128.72,0.73]
[1750622841701,47.649961,128.76,128.72,22.379961]
[1750622841908,26.0,128.76,128.72,22.379961]
[1750622842105,47.649961,128.76,128.72,22.379961]
[1750622842600,47.649961,128.76,128.72,0.73]
[1750622843011,47.649961,128.76,128.72,22.379961]
[1750622843918,26.0,128.76,128.73,18.64964886]
[1750622844096,47.649961,128.76,128.73,18.64964886]
[1750622845912,26.0,128.76,128.73,18.64964886]
[1750622846493,29.129961,128.79,128.75,41.02960986]
[1750622846716,169.749961,128.81,128.77,18.64964886]
[1750622846919,21.649961,128.82,128.77,41.02960986]
[1750622847118,21.649961,128.82,128.79,18.64964886]
[1750622847625,21.649961,128.81,128.78,18.64964886]
[1750622847916,21.649961,128.8,128.78,18.64964886]
[1750622848509,21.649961,128.8,128.75,22.379961]
[1750622848695,21.649961,128.8,128.76,18.64964886]
[1750622849408,21.649961,128.77,128.72,8.4039]
[1750622849617,21.649961,128.76,128.73,18.64964886]
[1750622850542,21.649961,128.75,128.73,18.64964886]
[1750622850839,21.649961,128.75,128.7,40.29960986]
[1750622851012,21.649961,128.74,128.7,40.29960986]
[1750622851209,21.649961,128.75,128.7,40.29960986]
[1750622851414,21.649961,128.75,128.7,41.02960986]
[1750622852841,21.649961,128.74,128.7,19.37964886]
[1750622853144,21.649961,128.73,128.7,18.64964886]
[1750622853323,47.649961,128.75,128.71,40.29960986]
[1750622853718,21.649961,128.74,128.71,18.64964886]
[1750622854120,21.649961,128.73,128.7,18.64964886]
[1750622855838,26.0,128.75,128.7,21.649961]
[1750622856037,21.649961,128.74,128.7,22.379961]
[1750622856238,21.649961,128.74,128.71,18.64964886]
[1750622856456,21.649961,128.73,128.7,18.64964886]
[1750622856754,21.649961,128.71,128.68,18.64964886]
[1750622858649,21.649961,128.71,128.66,21.649961]
[1750622858836,21.649961,128.71,128.67,18.64964886]
[1750622859028,21.649961,128.69,128.66,18.64964886]
[1750622859345,21.649961,128.67,128.63,1.7016113]
[1750622859535,21.649961,128.66,128.63,1.7016113]
[1750622859741,21.649961,128.68,128.64,22.379961]
[1750622859947,21.649961,128.7,128.65,22.379961]
[1750622860150,26.0,128.69,128.66,18.64964886]
[1750622860345,47.649961,128.69,128.66,18.64964886]
[1750622860548,26.0,128.69,128.66,18.64964886]
[1750622860847,27.897661,128.72,128.68,18.64964886]
[1750622861146,47.649961,128.71,128.66,0.73]
[1750622861324,47.649961,128.71,128.67,21.649961]
[1750622861728,48.359961,128.71,128.67,18.64964886]
[1750622862525,26.0,128.71,128.68,40.29960986]
[1750622862926,26.0,128.71,128.68,41.02960986]
[1750622863132,26.0,128.71,128.69,21.649961]
[1750622863336,21.649961,128.73,128.69,21.649961]
[1750622863541,26.0,128.72,128.68,19.37964886]
[1750622863754,26.0,128.71,128.7,21.649961]
[1750622863922,26.0,128.71,128.69,21.649961]
[1750622864328,26.68,128.71,128.67,18.64964886]
[1750622864659,26.68,128.71,128.67,40.29960986]
[1750622865452,26.0,128.71,128.63,35.47571184]
[1750622865655,0.68,128.69,128.66,21.649961]
[1750622865830,21.649961,128.69,128.64,21.649961]
[1750622866030,22.329961,128.68,128.64,21.649961]
[1750622866967,0.68,128.68,128.65,21.649961]
[1750622867659,0.68,128.68,128.64,40.29960986]
[1750622867842,47.649961,128.69,128.64,40.29960986]
[1750622868150,26.0,128.69,128.66,21.649961]
[1750622868362,26.0,128.69,128.67,21.649961]
[1750622868652,13.7277,128.75,128.68,21.649961]
[1750622868653,22.329961,128.73,128.68,21.649961]
[1750622868833,22.329961,128.73,128.69,21.649961]
[1750622869035,5.71438072,128.74,128.7,21.649961]
[1750622869342,13.8477,128.75,128.71,21.649961]
[1750622870060,13.8477,128.75,128.68,26.42068902]
[1750622870255,7.6,128.75,128.72,21.649961]
[1750622870957,7.13438992,128.8,128.74,21.649961]
[1750622870958,0.68,128.79,128.74,21.649961]
[1750622871157,0.68,128.79,128.72,18.64964886]
[1750622871158,29.929961,128.8,128.76,21.649961]
[1750622871458,29.929961,128.8,128.75,21.649961]
[1750622871859,26.0,128.77,128.75,21.649961]
[1750622872153,5.72309824,128.79,128.75,21.649961]
[1750622872337,26.0,128.77,128.75,21.649961]
[1750622872538,26.0,128.77,128.7,18.64964886]
[1750622872764,48.329961,128.77,128.73,21.649961]
[1750622873831,26.68,128.77,128.73,21.649961]
[1750622874045,47.649961,128.76,128.72,21.649961]
[1750622874276,22.329961,128.75,128.71,21.649961]
[1750622874731,0.68,128.75,128.71,21.649961]
[1750622874935,22.329961,128.75,128.71,21.649961]
[1750622876653,0.68,128.75,128.7,18.64964886]
[1750622876853,54.06542923,128.76,128.72,21.649961]
[1750622877056,54.06542923,128.76,128.71,21.649961]
[1750622878067,53.38542923,128.76,128.71,21.649961]
[1750622878363,21.649961,128.73,128.68,18.64964886]
[1750622878671,28.06542923,128.74,128.69,21.649961]
[1750622879367,5.73546823,128.74,128.71,21.649961]
[1750622880469,148.1,128.75,128.71,21.649961]
[1750622881047,169.749961,128.75,128.71,21.649961]
[1750622881649,148.1,128.75,128.71,21.649961]
[1750622881851,195.749961,128.75,128.71,21.649961]
[1750622882942,195.749961,128.75,128.74,21.649961]
[1750622882943,26.0,128.75,128.74,21.649961]
[1750622883165,13.35755495,128.78,128.75,18.64964886]
[1750622883365,5.75755495,128.79,128.76,21.649961]
[1750622883583,7.13438992,128.82,128.78,41.01960986]
[1750622883884,6.43960135,128.84,128.79,18.64964886]
[1750622884040,26.0,128.81,128.76,0.72]
[1750622884246,26.0,128.8,128.77,18.64964886]
[1750622884470,5.75960135,128.82,128.79,21.649961]
[1750622884685,28.08956235,128.84,128.8,40.29960986]
[1750622884864,26.0,128.83,128.8,40.29960986]
[1750622885473,28.08956235,128.84,128.8,18.64964886]
[1750622885850,22.329961,128.83,128.78,21.649961]
[1750622886171,21.649961,128.82,128.77,18.64964886]
[1750622886476,21.649961,128.82,128.77,40.29960986]
[1750622886670,21.649961,128.81,128.77,40.29960986]
[1750622887057,22.329961,128.82,128.77,40.29960986]
[1750622887263,22.329961,128.81,128.77,21.649961]
[1750622887570,21.649961,128.79,128.75,21.649961]
[1750622887792,21.649961,128.79,128.75,18.64964886]
[1750622887978,21.649961,128.78,128.75,18.64964886]
[1750622888664,21.649961,128.79,128.75,40.29960986]
[1750622889089,47.649961,128.79,128.75,40.29960986]
[1750622889789,47.649961,128.79,128.75,18.64964886]
[1750622889987,26.0,128.79,128.76,40.29960986]
[1750622890373,26.0,128.79,128.76,18.64964886]
[1750622891680,26.0,128.76,128.72,48.37729046]
[1750622891871,21.649961,128.75,128.72,48.37729046]
[1750622892394,26.0,128.76,128.73,40.29960986]
[1750622892778,26.0,128.76,128.73,41.01960986]
[1750622894402,26.0,128.76,128.73,18.64964886]
[1750622894699,26.0,128.76,128.73,40.29960986]
[1750622896279,26.0,128.76,128.73,18.64964886]
[1750622896476,157.3317,128.82,128.76,18.64964886]
[1750622896676,21.649961,128.79,128.76,18.64964886]
[1750622896885,21.649961,128.78,128.76,18.64964886]
[1750622897386,12.3642679,128.81,128.72,48.37729046]
[1750622897588,21.649961,128.76,128.73,18.64964886]
[1750622898098,21.649961,128.77,128.73,18.64964886]
[1750622898299,148.82,128.8,128.73,18.64964886]
[1750622898483,21.649961,128.77,128.73,40.29960986]
[1750622898803,21.649961,128.79,128.75,18.64964886]
[1750622899308,21.649961,128.79,128.76,18.64964886]
[1750622899488,169.749961,128.8,128.76,18.64964886]
[1750622901081,47.649961,128.77,128.74,18.64964886]
[1750622902281,26.0,128.77,128.74,18.64964886]
[1750622904090,26.0,128.77,128.74,40.98960986]
[1750622904495,26.0,128.77,128.74,19.33964886]
[1750622904919,21.649961,128.75,128.73,18.64964886]
[1750622905217,21.649961,128.76,128.73,18.64964886]
[1750622905584,21.649961,128.75,128.73,18.64964886]
[1750622906707,21.649961,128.76,128.73,18.64964886]
[1750622908310,0.72,128.78,128.73,18.64964886]
[1750622908495,26.0,128.76,128.73,19.33964886]
[1750622909609,5.74649049,128.79,128.76,18.64964886]
[1750622909610,31.74649049,128.79,128.76,18.64964886]
[1750622909809,21.649961,128.77,128.73,40.98960986]
[1750622910198,21.649961,128.75,128.72,48.37729046]
[1750622910513,21.649961,128.75,128.72,67.02693932]
[1750622910708,21.649961,128.73,128.72,48.37729046]
[1750622910915,21.649961,128.74,128.72,48.37729046]
[1750622912091,47.649961,128.75,128.72,48.37729046]
[1750622913309,47.649961,128.75,128.7,40.29960986]
[1750622913619,47.649961,128.75,128.72,18.64964886]
[1750622913914,26.0,128.75,128.72,19.33964886]
[1750622915216,26.0,128.75,128.7,19.33964886]
[1750622915392,47.649961,128.75,128.71,0.69]
[1750622916009,26.0,128.75,128.71,0.69]
[1750622916216,47.649961,128.75,128.71,0.69]
[1750622916594,26.0,128.75,128.71,22.339961]
[1750622917313,26.0,128.75,128.72,22.339961]
[1750622917510,5.76327844,128.76,128.75,18.64964886]
[1750622917688,5.76327844,128.78,128.75,18.64964886]
[1750622918311,5.76327844,128.78,128.75,19.33964886]
[1750622918616,21.649961,128.78,128.75,18.64964886]
[1750622919309,21.649961,128.78,128.7,7.58]
[1750622919310,21.649961,128.76,128.71,19.33964886]
[1750622919611,21.649961,128.76,128.71,40.98960986]
[1750622919810,22.369961,128.75,128.71,18.64964886]
[1750622920015,21.649961,128.73,128.69,8.5921]
[1750622920191,0.72,128.75,128.7,18.64964886]
[1750622920192,21.649961,128.72,128.7,18.64964886]
[1750622920511,21.649961,128.73,128.7,18.64964886]
[1750622920713,21.649961,128.72,128.7,18.64964886]
[1750622921012,26.0,128.75,128.7,18.64964886]
[1750622921203,21.649961,128.74,128.7,18.64964886]
[1750622922517,21.649961,128.73,128.7,18.64964886]
[1750622927513,21.649961,128.74,128.7,40.97960986]
[1750622928106,21.649961,128.74,128.7,19.32964886]
[1750622928307,21.649961,128.74,128.7,40.97960986]
[1750622928614,26.72,128.75,128.7,19.32964886]
[1750622928807,21.649961,128.73,128.7,19.32964886]